fUST/lending_fUST_20240824
["ID","MTS","AMOUNT","RATE_DAILY","PERIOD"]
[335724197,1724464238715,-156.77987816,0.00012971,2]
[335724199,1724464238725,-210.75301268,0.00012985,2]
[335724201,1724464238738,-183.34752571,0.00012985,2]
[335724203,1724464238748,-155.00168163,0.00012989,2]
[335724205,1724464238758,-690.25208832,0.00012989,2]
[335724207,1724464238769,-252.46827457,0.00012989,2]
[335724210,1724464238778,-1617.30674824,0.00012999,2]
[335724212,1724464238788,-150.112233,0.00013,2]
[335724214,1724464238797,-500.0,0.00013,2]
[335724216,1724464238806,-150.112233,0.000131,2]
[335724218,1724464238816,-150.112233,0.000132,2]
[335724220,1724464238826,-535.11790599,0.00013333,2]
[335724222,1724464238836,-3432.44869951,0.00013396,2]
[335724224,1724464238849,-150.112233,0.000134,2]
[335724226,1724464238860,-178.60519707,0.00013477,2]
[335724229,1724464238872,-154.72922386,0.00013477,2]
[335724231,1724464238882,-196.77202293,0.00013496,2]
[335724233,1724464238892,-731.48670109,0.00013496,2]
[335724235,1724464238901,-321.08985757,0.00013496,2]
[335724237,1724464238913,-358.61832394,0.00013496,2]
[335724239,1724464238923,-160.82790546,0.00013496,2]
[335724241,1724464238932,-899.22793923,0.00013496,2]
[335724244,1724464238943,-493.90973082,0.00013496,2]
[335724246,1724464238955,-372.87554992,0.00013496,2]
[335724248,1724464238965,-285.86640375,0.00013497,2]
[335724250,1724464238988,-150.112233,0.000135,2]
[335724252,1724464238998,-266.80767285,0.00013597,2]
[335724254,1724464239007,-1705.14685687,0.00013598,2]
[335724255,1724464239016,-88888.0,0.00013598,2]
[335724256,1724464239026,-586.5895514,0.00013598,2]
[335724257,1724464239038,-40000.0,0.00013598,2]
[335724258,1724464239048,-150.112233,0.000136,2]
[335724259,1724464239059,-500.0,0.00013673,2]
[335724260,1724464239069,-400.15434343,0.00013673,2]
[335724261,1724464239079,-207.7006306,0.00013698,2]
[335724262,1724464239089,-500.0,0.00013698,2]
[335724263,1724464239099,-493.30359901,0.00013698,2]
[335724264,1724464239109,-152.55072533,0.00013698,2]
[335724265,1724464239118,-500.0,0.00013698,2]
[335724266,1724464239128,-500.0,0.00013698,2]
[335724267,1724464239137,-500.0,0.00013698,2]
[335724269,1724464239147,-201.45629443,0.00013698,2]
[335724271,1724464239156,-500.0,0.00013698,2]
[335724273,1724464239166,-500.0,0.00013698,2]
[335724275,1724464239175,-873.4,0.00013698,2]
[335724277,1724464239184,-427.47475264,0.00013698,2]
[335724279,1724464239193,-201.33843058,0.00013698,2]
[335724281,1724464239202,-500.0,0.00013698,2]
[335724283,1724464239212,-500.0,0.00013698,2]
[335724284,1724464239223,-501.49956764,0.00013698,2]
[335724287,1724464239234,-500.0,0.00013698,2]
[335724289,1724464239244,-500.0,0.00013698,2]
[335724291,1724464239253,-500.0,0.00013698,2]
[335724292,1724464239262,-500.0,0.00013698,2]
[335724295,1724464239273,-500.0,0.00013698,2]
[335724297,1724464239283,-678.93,0.00013698,2]
[335724299,1724464239294,-500.0,0.00013698,2]
[335724301,1724464239305,-500.0,0.00013698,2]
[335724303,1724464239314,-500.0,0.00013698,2]
[335724305,1724464239323,-500.0,0.00013698,2]
[335724307,1724464239333,-500.0,0.00013698,2]
[335724309,1724464239343,-500.0,0.00013698,2]
[335724311,1724464239354,-500.70066292,0.00013698,2]
[335724313,1724464239364,-500.0,0.00013698,2]
[335724315,1724464239373,-500.57826719,0.00013698,2]
[335724318,1724464239383,-500.0,0.00013698,2]
[335724320,1724464239392,-391.32786529,0.00013698,2]
[335724322,1724464239401,-500.0,0.00013698,2]
[335724324,1724464239411,-500.0,0.00013698,2]
[335724326,1724464239420,-500.0,0.00013698,2]
[335724328,1724464239430,-265.12226053,0.00013698,2]
[335724330,1724464239439,-500.0,0.00013698,2]
[335724332,1724464239449,-500.0,0.00013698,2]
[335724334,1724464239459,-500.0,0.00013698,2]
[335724336,1724464239468,-511.23312792,0.00013698,2]
[335724338,1724464239479,-500.0,0.00013698,2]
[335724340,1724464239488,-500.0,0.00013698,2]
[335724342,1724464239499,-590.96582078,0.00013698,2]
[335724344,1724464239509,-500.0,0.00013698,2]
[335724346,1724464239519,-500.0,0.00013698,2]
[335724348,1724464239528,-500.0,0.00013698,2]
[335724350,1724464239538,-500.0,0.00013698,2]
[335724352,1724464239547,-500.0,0.00013698,2]
[335724354,1724464239557,-500.0,0.00013698,2]
[335724356,1724464239567,-501.02461397,0.00013698,2]
[335724358,1724464239578,-500.42181622,0.00013698,2]
[335724360,1724464239587,-500.0,0.00013698,2]
[335724362,1724464239597,-500.0,0.00013698,2]
[335724364,1724464239606,-814.90772146,0.00013698,2]
[335724366,1724464239823,-814.90772146,0.00013698,2]
[335724368,1724464239832,-814.90772146,0.00013698,2]
[335724370,1724464239843,-814.90772146,0.00013698,2]
[335724373,1724464239853,-814.90772146,0.00013698,2]
[335724375,1724464239862,-814.90772146,0.00013698,2]
[335724377,1724464239872,-814.90772146,0.00013698,2]
[335724379,1724464239881,-814.90772146,0.00013698,2]
[335724381,1724464239891,-814.90772146,0.00013698,2]
[335724383,1724464239900,-814.90772146,0.00013698,2]
[335724385,1724464239910,-814.90772146,0.00013698,2]
[335724386,1724464239919,-814.90772146,0.00013698,2]
[335724388,1724464239928,-814.90772146,0.00013698,2]
[335724390,1724464239937,-814.90772146,0.00013698,2]
[335724392,1724464239948,-502.96448523,0.00013698,2]
[335724394,1724464239957,-984.48,0.00013698,2]
[335724397,1724464239967,-500.0,0.00013698,2]
[335724424,1724464240194,-500.39562088,0.00013698,2]
[335724426,1724464240204,-500.0,0.00013698,2]
[335724428,1724464240214,-500.0,0.00013698,2]
[335724430,1724464240223,-1370.33166847,0.00013698,2]
[335724432,1724464240232,-500.0,0.00013698,2]
[335724434,1724464240243,-500.0,0.00013698,2]
[335724436,1724464240253,-500.0,0.00013698,2]
[335724438,1724464240264,-500.0,0.00013698,2]
[335724440,1724464240274,-500.0,0.00013698,2]
[335724442,1724464240284,-500.0,0.00013698,2]
[335724444,1724464240293,-500.0,0.00013698,2]
[335724446,1724464240303,-500.0,0.00013698,2]
[335724448,1724464240313,-1099.69,0.00013698,2]
[335724450,1724464240323,-609.41,0.00013698,2]
[335724452,1724464240332,-919.53,0.00013698,2]
[335724454,1724464240342,-1032.3,0.00013698,2]
[335724456,1724464240351,-500.0,0.00013698,2]
[335724458,1724464240361,-500.0,0.00013698,2]
[335724460,1724464240370,-500.0,0.00013698,2]
[335724463,1724464240381,-587.85,0.00013698,2]
[335724465,1724464240393,-1233.31,0.00013698,2]
[335724467,1724464240403,-500.79915346,0.00013698,2]
[335724469,1724464240414,-1704.96,0.00013698,2]
[335724471,1724464240424,-501.86672795,0.00013698,2]
[335724474,1724464240436,-557.23,0.00013698,2]
[335724476,1724464240447,-500.0,0.00013698,2]
[335724478,1724464240457,-638.26,0.00013698,2]
[335724480,1724464240466,-451.39342568,0.00013698,2]
[335724482,1724464240482,-500.0,0.00013698,2]
[335724484,1724464240492,-500.0,0.00013698,2]
[335724486,1724464240501,-500.0,0.00013698,2]
[335724488,1724464240511,-689.13,0.00013698,2]
[335724490,1724464240521,-500.0,0.00013698,2]
[335724492,1724464240531,-926.7,0.00013698,2]
[335724495,1724464240543,-500.0,0.00013698,2]
[335724497,1724464240554,-500.0,0.00013698,2]
[335724499,1724464240565,-500.0,0.00013698,2]
[335724501,1724464240575,-500.0,0.00013698,2]
[335724503,1724464240585,-500.0,0.00013698,2]
[335724505,1724464240594,-500.0,0.00013698,2]
[335724507,1724464240604,-500.0,0.00013698,2]
[335724509,1724464240615,-500.0,0.00013698,2]
[335724511,1724464240625,-500.0,0.00013698,2]
[335724513,1724464240635,-500.0,0.00013698,2]
[335724515,1724464240644,-500.0,0.00013698,2]
[335724518,1724464240654,-500.0,0.00013698,2]
[335724520,1724464240664,-665.73,0.00013698,2]
[335724521,1724464240674,-500.0,0.00013698,2]
[335724523,1724464240683,-905.06,0.00013698,2]
[335724526,1724464240693,-500.0,0.00013698,2]
[335724528,1724464240703,-500.0,0.00013698,2]
[335724530,1724464240712,-500.0,0.00013698,2]
[335724532,1724464240725,-500.40193934,0.00013698,2]
[335724534,1724464240736,-500.0,0.00013698,2]
[335724535,1724464240746,-500.0,0.00013698,2]
[335724538,1724464240757,-500.0,0.00013698,2]
[335724540,1724464240767,-500.0,0.00013698,2]
[335724542,1724464240776,-500.54110575,0.00013698,2]
[335724544,1724464240786,-500.0,0.00013698,2]
[335724546,1724464240795,-500.0,0.00013698,2]
[335724548,1724464240804,-581.09,0.00013698,2]
[335724550,1724464240813,-253.09911784,0.00013698,2]
[335724552,1724464240823,-500.0,0.00013698,2]
[335724554,1724464240833,-500.0,0.00013698,2]
[335724556,1724464240844,-500.0,0.00013698,2]
[335724558,1724464240854,-500.0,0.00013698,2]
[335724560,1724464240865,-500.0,0.00013698,2]
[335724562,1724464240875,-500.0,0.00013698,2]
[335724564,1724464240885,-500.02,0.00013698,2]
[335724566,1724464240894,-500.0,0.00013698,2]
[335724568,1724464240904,-966.95,0.00013698,2]
[335724570,1724464240916,-500.0,0.00013698,2]
[335724572,1724464240927,-524.03413021,0.00013698,2]
[335724574,1724464240937,-500.0,0.00013698,2]
[335724576,1724464240950,-500.0,0.00013698,2]
[335724578,1724464240960,-500.0,0.00013698,2]
[335724580,1724464240971,-848.35,0.00013698,2]
[335724582,1724464240980,-207.27455495,0.00013698,2]
[335724584,1724464240989,-500.0,0.00013698,2]
[335724587,1724464241001,-500.0,0.00013698,2]
[335724589,1724464241010,-500.0,0.00013698,2]
[335724591,1724464241021,-500.0,0.00013698,2]
[335724593,1724464241033,-500.0,0.00013698,2]
[335724595,1724464241043,-500.0,0.00013698,2]
[335724597,1724464241054,-500.0,0.00013698,2]
[335724599,1724464241064,-500.0,0.00013698,2]
[335724601,1724464241073,-500.0,0.00013698,2]
[335724603,1724464241082,-500.0,0.00013698,2]
[335724605,1724464241091,-500.0,0.00013698,2]
[335724608,1724464241100,-500.0,0.00013698,2]
[335724610,1724464241110,-500.0,0.00013698,2]
[335724612,1724464241119,-599.87,0.00013698,2]
[335724614,1724464241129,-500.0,0.00013698,2]
[335724616,1724464241138,-500.0,0.00013698,2]
[335724618,1724464241147,-500.0,0.00013698,2]
[335724620,1724464241156,-500.0,0.00013698,2]
[335724622,1724464241165,-500.0,0.00013698,2]
[335724624,1724464241174,-1003.83,0.00013698,2]
[335724626,1724464241183,-500.0,0.00013698,2]
[335724628,1724464241192,-500.0,0.00013698,2]
[335724630,1724464241201,-500.0,0.00013698,2]
[335724631,1724464241210,-454.43508637,0.00013698,2]
[335724634,1724464241220,-500.0,0.00013698,2]
[335724636,1724464241232,-500.0,0.00013698,2]
[335724638,1724464241243,-500.0,0.00013698,2]
[335724640,1724464241253,-500.0,0.00013698,2]
[335724642,1724464241263,-508.86163908,0.00013698,2]
[335724644,1724464241274,-500.0,0.00013698,2]
[335724646,1724464241283,-500.0,0.00013698,2]
[335724648,1724464241292,-450.99034216,0.00013698,2]
[335724650,1724464241302,-500.0,0.00013698,2]
[335724652,1724464241311,-3296.71,0.00013698,2]
[335724655,1724464241322,-500.0,0.00013698,2]
[335724657,1724464241331,-2792.37,0.00013698,2]
[335724659,1724464241341,-500.0,0.00013698,2]
[335724661,1724464241350,-500.0,0.00013698,2]
[335724663,1724464241359,-202.44085024,0.00013698,2]
[335724665,1724464241369,-500.0,0.00013698,2]
[335724667,1724464241378,-500.0,0.00013698,2]
[335724669,1724464241388,-500.77864388,0.00013698,2]
[335724671,1724464241397,-500.0,0.00013698,2]
[335724673,1724464241406,-500.0,0.00013698,2]
[335724675,1724464241417,-871.53,0.00013698,2]
[335724678,1724464241429,-500.0,0.00013698,2]
[335724680,1724464241439,-501.11720891,0.00013698,2]
[335724682,1724464241450,-500.0,0.00013698,2]
[335724684,1724464241460,-500.0,0.00013698,2]
[335724686,1724464241469,-500.80362181,0.00013698,2]
[335724688,1724464241482,-675.06,0.00013698,2]
[335724690,1724464241492,-500.0,0.00013698,2]
[335724692,1724464241501,-500.0,0.00013698,2]
[335724694,1724464241512,-500.0,0.00013698,2]
[335724696,1724464241522,-500.0,0.00013698,2]
[335724698,1724464241532,-459.53187077,0.00013698,2]
[335724701,1724464241542,-500.0,0.00013698,2]
[335724703,1724464241554,-500.0,0.00013698,2]
[335724705,1724464241563,-500.0,0.00013698,2]
[335724707,1724464241572,-500.0,0.00013698,2]
[335724709,1724464241582,-500.0,0.00013698,2]
[335724711,1724464241591,-817.13,0.00013698,2]
[335724713,1724464241601,-529.54190491,0.00013698,2]
[335724715,1724464241611,-500.0,0.00013698,2]
[335724717,1724464241622,-500.0,0.00013698,2]
[335724719,1724464241631,-500.0,0.00013698,2]
[335724721,1724464241640,-500.0,0.00013698,2]
[335724723,1724464241650,-500.89467598,0.00013698,2]
[335724725,1724464241660,-500.0,0.00013698,2]
[335724727,1724464241669,-500.64961572,0.00013698,2]
[335724729,1724464241678,-500.0,0.00013698,2]
[335724731,1724464241688,-524.57444368,0.00013698,2]
[335724733,1724464241697,-858.29,0.00013698,2]
[335724735,1724464241707,-541.87,0.00013698,2]
[335724737,1724464241716,-500.0,0.00013698,2]
[335724739,1724464241727,-500.0,0.00013698,2]
[335724741,1724464241737,-1300.81,0.00013698,2]
[335724743,1724464241746,-500.0,0.00013698,2]
[335724745,1724464241755,-500.0,0.00013698,2]
[335724747,1724464241764,-585.29,0.00013698,2]
[335724749,1724464241773,-500.0,0.00013698,2]
[335724751,1724464241783,-500.0,0.00013698,2]
[335724753,1724464241792,-500.0,0.00013698,2]
[335724755,1724464241802,-500.0,0.00013698,2]
[335724757,1724464241811,-500.0,0.00013698,2]
[335724759,1724464241820,-500.0,0.00013698,2]
[335724761,1724464241829,-500.0,0.00013698,2]
[335724763,1724464241839,-500.0,0.00013698,2]
[335724765,1724464241848,-500.0,0.00013698,2]
[335724767,1724464241857,-500.0,0.00013698,2]
[335724769,1724464241868,-500.0,0.00013698,2]
[335724771,1724464241878,-500.0,0.00013698,2]
[335724773,1724464241887,-191.6300038,0.00013698,2]
[335724775,1724464241897,-1040.64,0.00013698,2]
[335724778,1724464241907,-500.0,0.00013698,2]
[335724780,1724464241915,-500.0,0.00013698,2]
[335724782,1724464241925,-500.0,0.00013698,2]
[335724783,1724464241935,-731.58,0.00013698,2]
[335724785,1724464241944,-500.0,0.00013698,2]
[335724787,1724464241953,-500.0,0.00013698,2]
[335724789,1724464241962,-969.94,0.00013698,2]
[335724791,1724464241971,-500.0,0.00013698,2]
[335724793,1724464241981,-500.0,0.00013698,2]
[335724795,1724464241990,-500.0,0.00013698,2]
[335724797,1724464241999,-1081.37,0.00013698,2]
[335724799,1724464242009,-500.0,0.00013698,2]
[335724801,1724464242019,-500.0,0.00013698,2]
[335724803,1724464242029,-517.12,0.00013698,2]
[335724805,1724464242039,-500.0,0.00013698,2]
[335724807,1724464242048,-500.0,0.00013698,2]
[335724809,1724464242058,-501.13032962,0.00013698,2]
[335724811,1724464242067,-500.0,0.00013698,2]
[335724813,1724464242077,-331.08228858,0.00013698,2]
[335724815,1724464242086,-1288.15,0.00013698,2]
[335724817,1724464242096,-683.8,0.00013698,2]
[335724819,1724464242105,-2331.63,0.00013698,2]
[335724821,1724464242115,-500.0,0.00013698,2]
[335724823,1724464242126,-500.0,0.00013698,2]
[335724825,1724464242136,-537.44,0.00013698,2]
[335724828,1724464242145,-500.0,0.00013698,2]
[335724830,1724464242158,-500.0,0.00013698,2]
[335724832,1724464242167,-500.0,0.00013698,2]
[335724834,1724464242177,-500.0,0.00013698,2]
[335724836,1724464242186,-3029.76,0.00013698,2]
[335724838,1724464242196,-1108.73,0.00013698,2]
[335724840,1724464242205,-500.0,0.00013698,2]
[335724842,1724464242215,-500.0,0.00013698,2]
[335724844,1724464242225,-790.89,0.00013698,2]
[335724846,1724464242235,-500.0,0.00013698,2]
[335724848,1724464242245,-580.97,0.00013698,2]
[335724850,1724464242254,-890.43,0.00013698,2]
[335724852,1724464242264,-500.0,0.00013698,2]
[335724854,1724464242274,-500.0,0.00013698,2]
[335724856,1724464242283,-500.0,0.00013698,2]
[335724857,1724464242293,-1274.24,0.00013698,2]
[335724858,1724464242302,-1310.18,0.00013698,2]
[335724859,1724464242312,-500.0,0.00013698,2]
[335724860,1724464242321,-500.0,0.00013698,2]
[335724861,1724464242331,-500.0,0.00013698,2]
[335724862,1724464242342,-500.0,0.00013698,2]
[335724863,1724464242354,-207.3916535,0.00013698,2]
[335724864,1724464242364,-500.0,0.00013698,2]
[335724865,1724464242375,-1023.05,0.00013698,2]
[335724866,1724464242385,-500.0,0.00013698,2]
[335724867,1724464242394,-500.0,0.00013698,2]
[335724868,1724464242404,-500.0,0.00013698,2]
[335724869,1724464242413,-527.43,0.00013698,2]
[335724870,1724464242423,-500.0,0.00013698,2]
[335724871,1724464242434,-689.93,0.00013698,2]
[335724872,1724464242443,-500.0,0.00013698,2]
[335724873,1724464242453,-500.0,0.00013698,2]
[335724874,1724464242463,-568.0,0.00013698,2]
[335724875,1724464242473,-500.37615731,0.00013698,2]
[335724876,1724464242484,-500.0,0.00013698,2]
[335724877,1724464242496,-500.0,0.00013698,2]
[335724878,1724464242507,-500.0,0.00013698,2]
[335724879,1724464242519,-545.0,0.00013698,2]
[335724880,1724464242528,-500.0,0.00013698,2]
[335724881,1724464242538,-282.57120854,0.00013698,2]
[335724882,1724464242548,-675.72,0.00013698,2]
[335724883,1724464242558,-502.74548938,0.00013698,2]
[335724884,1724464242568,-1213.99,0.00013698,2]
[335724885,1724464242577,-500.0,0.00013698,2]
[335724886,1724464242588,-847.18,0.00013698,2]
[335724887,1724464242600,-2170.2,0.00013698,2]
[335724888,1724464242611,-628.26,0.00013698,2]
[335724890,1724464242626,-500.0,0.00013698,2]
[335724892,1724464242637,-809.49,0.00013698,2]
[335724894,1724464242647,-500.0,0.00013698,2]
[335724895,1724464242658,-500.0,0.00013698,2]
[335724897,1724464242668,-500.0,0.00013698,2]
[335724899,1724464242677,-500.0,0.00013698,2]
[335724901,1724464242688,-500.0,0.00013698,2]
[335724903,1724464242699,-500.0,0.00013698,2]
[335724904,1724464242711,-523.45,0.00013698,2]
[335724905,1724464242720,-500.0,0.00013698,2]
[335724906,1724464242732,-500.0,0.00013698,2]
[335724907,1724464242742,-615.05,0.00013698,2]
[335724908,1724464242751,-500.0,0.00013698,2]
[335724909,1724464242761,-500.0,0.00013698,2]
[335724910,1724464242770,-500.0,0.00013698,2]
[335724911,1724464242781,-660.17,0.00013698,2]
[335724912,1724464242790,-584.75,0.00013698,2]
[335724913,1724464242800,-501.18896424,0.00013698,2]
[335724914,1724464242809,-500.0,0.00013698,2]
[335724915,1724464242819,-500.0,0.00013698,2]
[335724916,1724464242828,-1501.33,0.00013698,2]
[335724917,1724464242838,-953.9,0.00013698,2]
[335724918,1724464242847,-500.0,0.00013698,2]
[335724919,1724464242857,-852.42,0.00013698,2]
[335724920,1724464242867,-500.0,0.00013698,2]
[335724921,1724464242876,-1115.33,0.00013698,2]
[335724922,1724464242886,-468.86601935,0.00013698,2]
[335724923,1724464242897,-1414.6,0.00013698,2]
[335724924,1724464242907,-500.0,0.00013698,2]
[335724925,1724464242918,-503.52550476,0.00013698,2]
[335724926,1724464242930,-500.0,0.00013698,2]
[335724927,1724464242940,-500.0,0.00013698,2]
[335724928,1724464242950,-500.0,0.00013698,2]
[335724929,1724464242960,-500.0,0.00013698,2]
[335724930,1724464242971,-500.36556423,0.00013698,2]
[335724931,1724464242984,-500.0,0.00013698,2]
[335724932,1724464242993,-500.0,0.00013698,2]
[335724933,1724464243003,-500.0,0.00013698,2]
[335724934,1724464243013,-208.28245632,0.00013698,2]
[335724935,1724464243023,-2195.09,0.00013698,2]
[335724936,1724464243032,-503.63131458,0.00013698,2]
[335724937,1724464243042,-673.74,0.00013698,2]
[335724938,1724464243052,-755.79,0.00013698,2]
[335724939,1724464243061,-500.0,0.00013698,2]
[335724940,1724464243071,-546.66878442,0.00013698,2]
[335724941,1724464243081,-500.0,0.00013698,2]
[335724942,1724464243090,-706.55,0.00013698,2]
[335724943,1724464243100,-500.0,0.00013698,2]
[335724944,1724464243110,-747.06,0.00013698,2]
[335724945,1724464243121,-500.0,0.00013698,2]
[335724946,1724464243132,-500.42521191,0.00013698,2]
[335724947,1724464243141,-978.69,0.00013698,2]
[335724949,1724464243152,-500.0,0.00013698,2]
[335724951,1724464243162,-500.0,0.00013698,2]
[335724953,1724464243173,-884.69,0.00013698,2]
[335724955,1724464243183,-500.0,0.00013698,2]
[335724957,1724464243192,-500.0,0.00013698,2]
[335724959,1724464243202,-500.0,0.00013698,2]
[335724961,1724464243211,-500.0,0.00013698,2]
[335724963,1724464243221,-500.0,0.00013698,2]
[335724966,1724464243233,-500.0,0.00013698,2]
[335724969,1724464243243,-500.0,0.00013698,2]
[335724972,1724464243252,-193.80537047,0.00013698,2]
[335724974,1724464243262,-1634.1,0.00013698,2]
[335724978,1724464243271,-500.0,0.00013698,2]
[335724981,1724464243282,-500.0,0.00013698,2]
[335724984,1724464243292,-500.0,0.00013698,2]
[335724986,1724464243301,-500.87301071,0.00013698,2]
[335724988,1724464243311,-573.59354109,0.00013698,2]
[335724989,1724464243320,-500.0,0.00013698,2]
[335724991,1724464243329,-500.0,0.00013698,2]
[335724992,1724464243340,-3103.99,0.00013698,2]
[335724993,1724464243349,-2741.41,0.00013698,2]
[335724994,1724464243358,-1268.36,0.00013698,2]
[335724995,1724464243367,-2175.03,0.00013698,2]
[335724996,1724464243377,-500.0,0.00013698,2]
[335724997,1724464243387,-500.0,0.00013698,2]
[335724999,1724464243396,-1201.81,0.00013698,2]
[335725001,1724464243406,-729.72,0.00013698,2]
[335725002,1724464243415,-726.08,0.00013698,2]
[335725004,1724464243425,-500.0,0.00013698,2]
[335725006,1724464243434,-601.03,0.00013698,2]
[335725007,1724464243443,-500.0,0.00013698,2]
[335725009,1724464243452,-1209.36,0.00013698,2]
[335725011,1724464243462,-864.98,0.00013698,2]
[335725013,1724464243475,-500.0,0.00013698,2]
[335725015,1724464243485,-3422.9,0.00013698,2]
[335725017,1724464243494,-500.0,0.00013698,2]
[335725019,1724464243503,-500.0,0.00013698,2]
[335725020,1724464243512,-1987.07,0.00013698,2]
[335725021,1724464243522,-500.0,0.00013698,2]
[335725022,1724464243532,-821.28,0.00013698,2]
[335725023,1724464243541,-500.0,0.00013698,2]
[335725024,1724464243551,-500.0,0.00013698,2]
[335725025,1724464243560,-1472.06,0.00013698,2]
[335725026,1724464243570,-1094.59,0.00013698,2]
[335725027,1724464243580,-847.37,0.00013698,2]
[335725028,1724464243589,-1150.26,0.00013698,2]
[335725029,1724464243599,-854.29,0.00013698,2]
[335725030,1724464243609,-500.0,0.00013698,2]
[335725031,1724464243622,-1637.4,0.00013698,2]
[335725033,1724464243632,-504.03413542,0.00013698,2]
[335725035,1724464243642,-927.59,0.00013698,2]
[335725037,1724464243653,-500.0,0.00013698,2]
[335725039,1724464243664,-1548.36,0.00013698,2]
[335725041,1724464243675,-500.0,0.00013698,2]
[335725043,1724464243684,-513.99772868,0.00013698,2]
[335725044,1724464243696,-500.0,0.00013698,2]
[335725046,1724464243707,-2724.62,0.00013698,2]
[335725047,1724464243718,-513.09,0.00013698,2]
[335725048,1724464243734,-807.41,0.00013698,2]
[335725049,1724464243748,-500.0,0.00013698,2]
[335725050,1724464243757,-500.0,0.00013698,2]
[335725053,1724464243767,-500.0,0.00013698,2]
[335725056,1724464243776,-500.0,0.00013698,2]
[335725057,1724464243786,-500.0,0.00013698,2]
[335725058,1724464243795,-500.0,0.00013698,2]
[335725059,1724464243805,-1545.99,0.00013698,2]
[335725060,1724464243815,-1520.76,0.00013698,2]
[335725061,1724464243825,-405.56100338,0.00013698,2]
[335725062,1724464243836,-737.64,0.00013698,2]
[335725063,1724464243846,-152.88663537,0.00013698,2]
[335725064,1724464243856,-500.0,0.00013698,2]
[335725065,1724464243866,-661.19,0.00013698,2]
[335725066,1724464243876,-500.0,0.00013698,2]
[335725067,1724464243885,-500.0,0.00013698,2]
[335725068,1724464243895,-500.0,0.00013698,2]
[335725069,1724464243904,-500.0,0.00013698,2]
[335725070,1724464243914,-500.0,0.00013698,2]
[335725071,1724464243924,-317.59539575,0.00013698,2]
[335725072,1724464243935,-614.87,0.00013698,2]
[335725073,1724464243947,-500.0,0.00013698,2]
[335725074,1724464243957,-500.0,0.00013698,2]
[335725075,1724464243966,-500.0,0.00013698,2]
[335725076,1724464243980,-930.78,0.00013698,2]
[335725077,1724464243990,-942.91,0.00013698,2]
[335725078,1724464243999,-773.3,0.00013698,2]
[335725079,1724464244176,-941.73,0.00013698,2]
[335725080,1724464244185,-1483.7,0.00013698,2]
[335725081,1724464244195,-500.0,0.00013698,2]
[335725082,1724464244204,-1080.32,0.00013698,2]
[335725083,1724464244213,-500.0,0.00013698,2]
[335725084,1724464244222,-500.0,0.00013698,2]
[335725085,1724464244233,-21969.49,0.00013698,2]
[335725086,1724464244242,-745.79,0.00013698,2]
[335725087,1724464244251,-500.0,0.00013698,2]
[335725088,1724464244260,-260.3008643,0.00013698,2]
[335725089,1724464244269,-1392.41,0.00013698,2]
[335725090,1724464244278,-1135.03,0.00013698,2]
[335725091,1724464244287,-1023.95,0.00013698,2]
[335725092,1724464244297,-542.74513488,0.00013698,2]